bitfinex/quotes_SOLUSD_20241213
["timestamp","ask_amount","ask_price","bid_price","bid_amount"]
[1734070825972,0.12549,226.34,226.28,8.25628913]
[1734070828678,8.38177913,226.34,226.27,8.25628913]
[1734070828856,8.25628913,226.33,226.26,8.25628913]
[1734070829868,8.25628913,226.32,226.25,8.25628913]
[1734070830571,8.25628913,226.33,226.26,8.25628913]
[1734070831097,8.25628913,226.33,226.22,0.66285714]
[1734070831381,9.80398913,226.35,226.28,8.25628913]
[1734070833753,9.80398913,226.35,226.29,8.25628913]
[1734070834764,8.25628913,226.34,226.28,8.25628913]
[1734070834979,8.25628913,226.34,226.27,8.25628913]
[1734070836277,8.25628913,226.33,226.27,8.25628913]
[1734070838001,8.25628913,226.34,226.27,8.25628913]
[1734070838297,1.5477,226.35,226.27,8.25628913]
[1734070838482,1.5477,226.35,226.28,8.25628913]
[1734070838685,8.25628913,226.36,226.29,8.25628913]
[1734070841399,28.25628913,226.36,226.29,8.25628913]
[1734070842095,8.25628913,226.35,226.29,8.25628913]
[1734070843108,8.25628913,226.35,226.28,8.25628913]
[1734070843268,20.0,226.36,226.21,7.5821]
[1734070843269,8.25628913,226.32,226.21,7.5821]
[1734070843471,8.25628913,226.31,226.24,8.25628913]
[1734070847774,8.25628913,226.3,226.23,8.25628913]
[1734070849481,8.25628913,226.31,226.24,8.25628913]
[1734070850782,8.25628913,226.29,226.22,8.25628913]
[1734070852491,20.0,226.32,226.24,8.25628913]
[1734070852695,8.25628913,226.3,226.24,8.25628913]
[1734070853506,8.25628913,226.32,226.25,8.25628913]
[1734070855914,20.0,226.32,226.25,8.25628913]
[1734070856078,28.25628913,226.32,226.25,8.25628913]
[1734070856611,1.6405,226.34,226.27,8.25628913]
[1734070856918,1.6405,226.34,226.29,8.25628913]
[1734070858298,0.12549,226.35,226.29,8.25628913]
[1734070859495,8.38177913,226.35,226.28,8.25628913]
[1734070861393,20.0,226.37,226.29,8.25628913]
[1734070861588,8.25628913,226.36,226.29,8.25628913]
[1734070861910,8.25628913,226.35,226.28,8.25628913]
[1734070866607,8.25628913,226.36,226.28,8.25628913]
[1734070867009,8.25628913,226.36,226.29,8.25628913]
[1734070867710,0.12549,226.4,226.32,8.25628913]
[1734070867903,8.38177913,226.4,226.33,8.25628913]
[1734070868622,0.12549,226.4,226.34,8.25628913]
[1734070870317,28.25628913,226.41,226.34,8.25628913]
[1734070872321,20.0,226.41,226.35,8.25628913]
[1734070874102,0.12549,226.43,226.36,8.25628913]
[1734070874409,8.25628913,226.42,226.36,8.25628913]
[1734070874616,8.25628913,226.41,226.34,8.25628913]
[1734070874816,0.12549,226.43,226.29,7.8104]
[1734070875014,8.25628913,226.41,226.34,8.25628913]
[1734070875429,8.25628913,226.4,226.33,8.25628913]
[1734070877926,8.25628913,226.41,226.34,8.25628913]
[1734070878231,8.25628913,226.42,226.34,8.25628913]
[1734070880040,0.12549,226.43,226.34,8.25628913]
[1734070880243,8.25628913,226.42,226.34,8.25628913]
[1734070881428,8.25628913,226.42,226.3,0.66263817]
[1734070881429,8.25628913,226.41,226.33,8.25628913]
[1734070883435,8.25628913,226.41,226.3,0.66263817]
[1734070883628,8.25628913,226.38,226.31,8.25628913]
[1734070883826,8.25628913,226.37,226.29,7.8104]
[1734070884041,8.25628913,226.36,226.29,16.06668913]
[1734070885321,11.0414,226.42,226.29,16.06668913]
[1734070885322,8.25628913,226.37,226.29,16.06668913]
[1734070885625,8.25628913,226.37,226.3,8.25628913]
[1734070886247,8.25628913,226.36,226.29,8.25628913]
[1734070888046,8.25628913,226.37,226.29,8.25628913]
[1734070890522,8.25628913,226.37,226.25,0.66281077]
[1734070890717,8.25628913,226.37,226.29,8.25628913]
[1734070891752,8.25628913,226.37,226.24,10.29869838]
[1734070891753,8.25628913,226.32,226.24,7.684]
[1734070892039,8.25628913,226.31,226.24,15.94028913]
[1734070892246,8.25628913,226.28,226.19,7.908]
[1734070892447,8.25628913,226.28,226.22,8.25628913]
[1734070892622,0.12549,226.35,226.22,8.25628913]
[1734070892623,8.25628913,226.29,226.22,8.25628913]
[1734070892823,8.25628913,226.31,226.24,8.25628913]
[1734070893542,0.12549,226.35,226.25,8.25628913]
[1734070893723,8.25628913,226.33,226.26,8.25628913]
[1734070896141,20.0,226.35,226.27,8.25628913]
[1734070896444,28.25628913,226.35,226.28,8.25628913]
[1734070899035,28.25628913,226.35,226.29,8.25628913]
[1734070900739,0.12549,226.38,226.31,8.25628913]
[1734070900944,29.85731665,226.41,226.32,8.25628913]
[1734070900945,0.12549,226.4,226.32,8.25628913]
[1734070901145,8.25628913,226.39,226.32,8.25628913]
[1734070901520,8.25628913,226.38,226.32,8.25628913]
[1734070902725,8.25628913,226.39,226.32,8.25628913]
[1734070904047,8.25628913,226.38,226.31,8.25628913]
[1734070905755,8.25628913,226.39,226.32,8.25628913]
[1734070910735,8.25628913,226.38,226.31,8.25628913]
[1734070913360,8.25628913,226.37,226.27,20.0]
[1734070913545,8.25628913,226.37,226.3,8.25628913]
[1734070918673,8.25628913,226.37,226.31,8.25628913]
[1734070922448,8.25628913,226.37,226.27,20.66273357]
[1734070922648,8.25628913,226.37,226.31,8.25628913]
[1734070923161,8.25628913,226.38,226.31,8.25628913]
[1734070925872,8.25628913,226.37,226.27,20.0]
[1734070926068,8.25628913,226.37,226.25,0.66275838]
[1734070926069,8.25628913,226.35,226.24,8.1812]
[1734070926276,8.25628913,226.33,226.26,8.25628913]
[1734070926571,8.25628913,226.33,226.24,8.1812]
[1734070926747,8.25628913,226.32,226.25,8.25628913]
[1734070929249,8.25628913,226.33,226.27,8.25628913]
[1734070929450,8.25628913,226.34,226.27,8.25628913]
[1734070929654,8.25628913,226.35,226.28,8.25628913]
[1734070933761,8.25628913,226.37,226.3,8.25628913]
[1734070934096,0.12549,226.37,226.31,8.25628913]
[1734070935779,8.25628913,226.38,226.32,8.25628913]
[1734070936786,8.25628913,226.39,226.32,8.25628913]
[1734070937003,0.12549,226.39,226.33,8.25628913]
[1734070940677,8.25628913,226.39,226.33,8.25628913]
[1734070941067,8.25628913,226.39,226.27,8.78132067]
[1734070941372,8.25628913,226.39,226.33,8.25628913]
[1734070942371,8.25628913,226.4,226.33,8.25628913]
[1734070943084,8.25628913,226.41,226.34,8.25628913]
[1734070943484,23.902374,226.44,226.35,8.25628913]
[1734070943673,1.6308,226.46,226.37,8.25628913]
[1734070943872,8.25628913,226.44,226.37,8.25628913]
[1734070944067,8.25628913,226.45,226.38,8.25628913]
[1734070944286,6.91495903,226.48,226.4,8.25628913]
[1734070944500,8.25628913,226.46,226.4,8.25628913]
[1734070944992,8.25628913,226.46,226.39,8.25628913]
[1734070945369,8.25628913,226.45,226.39,8.25628913]
[1734070948895,8.25628913,226.46,226.4,8.25628913]
[1734070955399,8.25628913,226.43,226.34,7.789]
[1734070955722,8.25628913,226.41,226.35,8.25628913]
[1734070955880,8.25628913,226.41,226.34,16.04528913]
[1734070956382,8.25628913,226.41,226.35,8.25628913]
[1734070958590,8.25628913,226.42,226.35,8.25628913]
[1734070962202,8.25628913,226.39,226.28,8.36348778]
[1734070962383,8.25628913,226.39,226.32,8.25628913]
[1734070964704,8.25628913,226.39,226.31,20.0]
[1734070964910,8.25628913,226.39,226.32,8.25628913]
[1734070967208,8.25628913,226.42,226.35,8.25628913]
[1734070967604,8.25628913,226.41,226.34,8.25628913]
[1734070969185,0.12549,226.43,226.34,8.25628913]
[1734070969381,8.25628913,226.41,226.34,8.25628913]
[1734070980589,8.25628913,226.42,226.35,8.25628913]
[1734070981790,8.25628913,226.42,226.29,0.66270374]
[1734070982062,8.25628913,226.41,226.29,0.66270374]
[1734070982186,8.25628913,226.4,226.29,0.66270374]
[1734070982397,8.25628913,226.4,226.33,8.25628913]
[1734070986119,8.25628913,226.4,226.28,7.7009]
[1734070986325,8.25628913,226.37,226.3,8.25628913]
[1734070989634,8.25628913,226.38,226.31,8.25628913]
[1734070990629,11.0415,226.42,226.31,8.25628913]
[1734070990630,23.902374,226.41,226.31,8.25628913]
[1734070990827,8.25628913,226.38,226.31,8.25628913]
[1734070991314,8.25628913,226.4,226.33,8.25628913]
[1734070994628,11.0398,226.46,226.33,8.25628913]
[1734070994937,8.25628913,226.4,226.33,8.25628913]
[1734070995143,8.25628913,226.41,226.34,8.25628913]
[1734070996208,23.902374,226.45,226.35,8.25628913]
[1734070996534,8.25628913,226.42,226.36,8.25628913]
[1734070998525,8.25628913,226.41,226.35,8.25628913]
[1734070999331,23.902374,226.45,226.35,8.25628913]
[1734070999637,8.25628913,226.41,226.34,8.25628913]
[1734071002827,8.25628913,226.4,226.33,8.25628913]
[1734071003030,8.25628913,226.38,226.28,7.7009]
[1734071003231,8.25628913,226.38,226.31,8.25628913]
[1734071005016,8.25628913,226.36,226.28,7.7009]
[1734071005239,8.25628913,226.36,226.29,8.25628913]
[1734071005439,8.25628913,226.35,226.28,7.7009]
[1734071005644,8.25628913,226.32,226.28,7.7009]
[1734071006426,8.25628913,226.32,226.26,8.25628913]
[1734071008582,33.02515652,226.38,226.23,7.7596]
[1734071008583,8.25628913,226.34,226.27,8.25628913]
[1734071008765,8.25628913,226.35,226.29,8.25628913]
[1734071009570,8.25628913,226.36,226.29,8.25628913]
[1734071010262,8.25628913,226.35,226.29,8.25628913]
[1734071011547,8.25628913,226.35,226.23,8.42248122]
[1734071011745,8.25628913,226.35,226.29,8.25628913]
[1734071016659,8.25628913,226.34,226.23,8.42248122]
[1734071016871,0.12549,226.39,226.23,7.7596]
[1734071016872,8.25628913,226.3,226.23,7.7596]
[1734071017046,8.25628913,226.29,226.23,7.7596]
[1734071017376,8.25628913,226.28,226.23,7.7596]
[1734071017598,20.0,226.32,226.23,16.01588913]
[1734071017772,8.25628913,226.3,226.23,16.01588913]
[1734071017953,8.25628913,226.3,226.24,8.25628913]
[1734071018591,8.25628913,226.3,226.23,16.01588913]
[1734071018752,8.25628913,226.29,226.23,7.7596]
[1734071018953,8.25628913,226.29,226.22,8.25628913]
[1734071020076,20.0,226.32,226.23,8.25628913]
[1734071020077,8.25628913,226.3,226.23,8.25628913]
[1734071021774,8.25628913,226.29,226.22,8.25628913]
[1734071023364,8.25628913,226.28,226.21,8.25628913]
[1734071024779,8.25628913,226.27,226.2,8.25628913]
[1734071024978,8.25628913,226.24,226.18,7.9248]
[1734071025359,8.25628913,226.23,226.18,7.9248]
[1734071030085,23.902374,226.26,226.18,7.9248]
[1734071030283,8.25628913,226.24,226.18,7.9248]
[1734071030768,20.0,226.27,226.18,7.9248]
[1734071030981,0.12549,226.28,226.21,8.25628913]
[1734071031172,8.38177913,226.28,226.21,8.25628913]
[1734071032972,8.25628913,226.29,226.22,8.25628913]
[1734071033275,20.0,226.32,226.22,8.25628913]
[1734071033488,8.25628913,226.29,226.22,8.25628913]
[1734071034681,8.25628913,226.28,226.21,8.25628913]
[1734071038775,8.25628913,226.27,226.21,8.25628913]
[1734071040207,8.25628913,226.26,226.19,8.25628913]
[1734071041701,8.25628913,226.24,226.18,16.18108913]
[1734071042113,8.25628913,226.24,226.18,7.9248]
[1734071043190,0.12549,226.26,226.19,8.25628913]
[1734071043383,8.25628913,226.25,226.19,8.25628913]
[1734071043594,8.25628913,226.25,226.18,16.18108913]
[1734071044804,8.25628913,226.25,226.19,8.25628913]
[1734071046209,11.0472,226.3,226.18,7.9248]
[1734071046210,23.776884,226.29,226.21,8.25628913]
[1734071046384,8.25628913,226.28,226.21,8.25628913]
[1734071048100,8.25628913,226.29,226.22,8.25628913]
[1734071048304,8.25628913,226.28,226.22,8.25628913]
[1734071048609,8.25628913,226.28,226.21,8.25628913]
[1734071048899,8.25628913,226.26,226.19,8.25628913]
[1734071049100,8.25628913,226.25,226.18,7.9248]
[1734071049304,8.25628913,226.25,226.18,16.18108913]
[1734071049504,8.25628913,226.24,226.18,7.9248]
[1734071049899,8.25628913,226.25,226.18,16.18108913]
[1734071055528,92.8469,226.31,226.2,8.25628913]
[1734071055529,20.0,226.28,226.2,8.25628913]
[1734071055701,20.0,226.28,226.18,7.9248]
[1734071055702,8.25628913,226.28,226.21,8.25628913]
[1734071056416,81.8,226.34,226.22,8.25628913]
[1734071056623,8.25628913,226.3,226.23,8.25628913]
[1734071057832,8.25628913,226.32,226.25,8.25628913]
[1734071058314,8.25628913,226.3,226.23,8.25628913]
[1734071059699,15.8007622,226.35,226.24,8.25628913]
[1734071059700,8.25628913,226.31,226.24,8.25628913]
[1734071059913,8.25628913,226.32,226.25,8.25628913]
[1734071061534,8.25628913,226.31,226.25,8.25628913]
[1734071062897,8.25628913,226.31,226.24,8.25628913]
[1734071064816,8.25628913,226.31,226.19,0.66301343]
[1734071064817,0.12549,226.34,226.27,8.25628913]
[1734071065014,8.25628913,226.34,226.27,8.25628913]
[1734071065321,8.25628913,226.35,226.28,8.25628913]
[1734071067706,8.25628913,226.35,226.29,8.25628913]
[1734071068219,8.25628913,226.34,226.27,8.25628913]
[1734071070822,0.12549,226.36,226.26,8.0878]
[1734071070823,8.25628913,226.35,226.28,8.25628913]
[1734071071927,8.25628913,226.35,226.26,8.0878]
[1734071071928,8.25628913,226.34,226.27,8.25628913]
[1734071073510,8.25628913,226.33,226.27,8.25628913]
[1734071074316,8.25628913,226.33,226.26,16.34408913]
[1734071075514,8.25628913,226.33,226.21,8.86135225]
[1734071075714,8.25628913,226.33,226.26,8.25628913]
[1734071077114,8.25628913,226.33,226.27,8.25628913]
[1734071081112,8.25628913,226.34,226.27,8.25628913]
[1734071082836,8.25628913,226.33,226.26,8.25628913]
[1734071084042,8.25628913,226.32,226.24,8.25628913]
[1734071084225,8.25628913,226.3,226.21,8.1985]
[1734071084541,8.25628913,226.29,226.22,8.25628913]
[1734071085144,8.25628913,226.3,226.23,8.25628913]
[1734071085732,8.25628913,226.31,226.24,8.25628913]
[1734071087441,8.25628913,226.31,226.25,8.25628913]
[1734071088142,8.25628913,226.32,226.25,8.25628913]
[1734071091030,12.09677167,226.38,226.27,8.25628913]
[1734071091234,8.25628913,226.37,226.3,8.25628913]
[1734071091437,8.25628913,226.38,226.31,8.25628913]
[1734071091635,12.666,226.4,226.31,8.25628913]
[1734071091823,8.25628913,226.37,226.3,8.25628913]
[1734071092225,8.25628913,226.36,226.29,8.25628913]
[1734071095844,8.25628913,226.36,226.23,0.66275489]
[1734071095845,8.25628913,226.36,226.25,20.0]
[1734071096055,8.25628913,226.36,226.29,8.25628913]
[1734071099344,8.25628913,226.37,226.3,8.25628913]
[1734071101247,8.25628913,226.37,226.31,8.25628913]
[1734071104446,8.25628913,226.37,226.3,8.25628913]
[1734071105036,8.25628913,226.36,226.29,8.25628913]
[1734071112647,8.25628913,226.3,226.22,7.8743]
[1734071112851,8.25628913,226.29,226.22,16.13058913]
[1734071113635,8.25628913,226.3,226.23,8.25628913]
[1734071115985,8.25628913,226.28,226.22,16.13058913]
[1734071116271,8.25628913,226.28,226.22,8.25628913]
[1734071117544,8.25628913,226.28,226.18,0.66294902]
[1734071117849,8.25628913,226.28,226.21,8.25628913]
[1734071119287,8.25628913,226.28,226.18,0.6629933]
[1734071119465,8.25628913,226.28,226.22,8.25628913]
[1734071124487,1.6032,226.33,226.24,8.25628913]
[1734071124691,8.25628913,226.34,226.27,8.25628913]
[1734071124865,6.90417337,226.37,226.28,8.25628913]
[1734071125064,8.25628913,226.34,226.28,8.25628913]
[1734071125371,6.90417337,226.37,226.28,8.25628913]
[1734071125554,8.25628913,226.34,226.28,8.25628913]
[1734071125861,8.25628913,226.35,226.28,8.25628913]
[1734071129675,8.25628913,226.36,226.29,8.25628913]
[1734071130777,43.902374,226.38,226.3,8.25628913]
[1734071131081,8.25628913,226.38,226.31,8.25628913]
[1734071133658,1.5653,226.39,226.31,8.25628913]
[1734071133874,8.25628913,226.37,226.31,8.25628913]
[1734071134094,8.256289,226.44,226.32,8.25628913]
[1734071134280,8.25628913,226.39,226.33,8.25628913]
[1734071134484,8.25628913,226.39,226.32,8.25628913]
[1734071135866,8.25628913,226.39,226.28,0.66266071]
[1734071135867,8.25628913,226.39,226.33,8.25628913]
[1734071138169,8.25628913,226.38,226.32,8.25628913]
[1734071138369,8.25628913,226.37,226.31,8.25628913]
[1734071139488,8.25628913,226.37,226.28,20.66266071]
[1734071139870,8.25628913,226.37,226.3,8.25628913]
[1734071140278,8.25628913,226.36,226.3,8.25628913]
[1734071140470,8.25628913,226.36,226.29,8.25628913]
[1734071141274,8.25628913,226.36,226.3,8.25628913]
[1734071142990,8.25628913,226.36,226.29,8.25628913]
[1734071144585,8.25628913,226.36,226.3,8.25628913]
[1734071144789,8.25628913,226.37,226.3,8.25628913]
[1734071156800,8.25628913,226.38,226.31,8.25628913]
[1734071157804,23.902374,226.42,226.31,8.25628913]
[1734071158017,5.62897167,226.43,226.38,8.25628913]
[1734071158184,1.5657,226.45,226.38,8.25628913]
[1734071158501,9.82198913,226.45,226.38,8.25628913]
[1734071158698,8.25628913,226.44,226.37,8.25628913]
[1734071160577,1.5657,226.45,226.37,8.25628913]
[1734071160814,8.25628913,226.44,226.37,8.25628913]
[1734071160981,1.5657,226.45,226.37,8.25628913]
[1734071161303,8.25628913,226.44,226.37,8.25628913]
[1734071164296,1.5657,226.45,226.37,8.25628913]
[1734071164297,8.25628913,226.43,226.37,8.25628913]
[1734071164487,8.25628913,226.43,226.36,8.25628913]
[1734071167088,8.25628913,226.41,226.32,6.6045]
[1734071167295,8.25628913,226.41,226.34,8.25628913]
[1734071169616,8.25628913,226.41,226.35,8.25628913]
[1734071175935,8.25628913,226.42,226.35,8.25628913]
[1734071176921,1.5657,226.45,226.35,8.25628913]
[1734071177110,8.25628913,226.45,226.38,8.25628913]
[1734071179094,8.25628913,226.44,226.37,8.25628913]
[1734071179709,8.25628913,226.43,226.36,8.25628913]
[1734071186124,8.25628913,226.43,226.35,20.0]
[1734071186426,8.25628913,226.41,226.34,9.82878913]
[1734071186722,8.25628913,226.42,226.34,9.82878913]
[1734071186931,8.25628913,226.42,226.35,28.25628913]
[1734071187498,8.25628913,226.43,226.36,8.25628913]
[1734071189511,8.25628913,226.44,226.36,8.25628913]
[1734071189904,23.902374,226.49,226.36,8.25628913]
[1734071190103,8.25628913,226.44,226.36,8.25628913]
[1734071191324,8.25628913,226.43,226.36,8.25628913]
[1734071191632,8.25628913,226.44,226.37,8.25628913]
[1734071193527,8.25628913,226.45,226.37,8.25628913]
[1734071195934,8.25628913,226.45,226.38,8.25628913]
[1734071196117,23.902374,226.49,226.34,1.5725]
[1734071196118,8.25628913,226.46,226.39,8.25628913]
[1734071196440,8.25628913,226.48,226.41,8.25628913]
[1734071198634,20.0,226.5,226.41,8.25628913]
[1734071198826,8.25628913,226.47,226.41,8.25628913]
[1734071199529,8.25628913,226.48,226.41,8.25628913]
[1734071201140,8.25628913,226.48,226.42,8.25628913]
[1734071203342,8.25628913,226.47,226.41,8.25628913]
[1734071203542,8.25628913,226.47,226.4,8.25628913]
[1734071203731,8.25628913,226.45,226.39,14.29928913]
[1734071203931,8.25628913,226.44,226.39,6.043]
[1734071206427,8.25628913,226.45,226.39,6.043]
[1734071207738,8.25628913,226.45,226.39,14.29928913]
[1734071208124,8.25628913,226.45,226.39,6.043]
[1734071210254,8.25628913,226.44,226.39,6.043]
[1734071210429,8.25628913,226.43,226.36,8.25628913]
[1734071211030,0.12549,226.47,226.37,8.25628913]
[1734071211251,8.25628913,226.44,226.37,8.25628913]
[1734071212142,8.25628913,226.43,226.36,28.25628913]
[1734071213653,33.02515652,226.49,226.36,28.25628913]
[1734071213840,8.25628913,226.46,226.39,8.25628913]
[1734071214846,20.0,226.5,226.41,8.25628913]
[1734071215032,8.25628913,226.48,226.41,8.25628913]
[1734071215526,8.25628913,226.49,226.42,8.25628913]
[1734071218555,8.25628913,226.48,226.41,9.76788913]
[1734071219957,8.25628913,226.47,226.41,1.5116]
[1734071221556,8.25628913,226.45,226.41,1.0]
[1734071222065,8.25628913,226.46,226.41,1.0]
[1734071223262,8.25628913,226.48,226.41,9.25628913]
[1734071223841,8.25628913,226.47,226.41,9.25628913]
[1734071224040,8.25628913,226.47,226.41,1.0]
[1734071224548,8.25628913,226.46,226.41,1.0]
[1734071224856,8.25628913,226.45,226.41,1.0]
[1734071229066,23.776884,226.5,226.41,1.0]
[1734071229365,8.25628913,226.45,226.41,1.0]
[1734071230143,0.12549,226.49,226.41,1.0]
[1734071230144,8.25628913,226.44,226.41,1.0]
[1734071230945,8.25628913,226.43,226.41,1.0]
[1734071233665,0.12549,226.48,226.41,1.0]
[1734071233865,8.25628913,226.45,226.41,1.0]
[1734071235468,8.25628913,226.46,226.41,1.0]
[1734071236958,0.12549,226.5,226.41,1.0]
[1734071237378,8.25628913,226.47,226.41,1.0]
[1734071239759,8.25628913,226.48,226.41,1.0]
[1734071241357,8.25628913,226.47,226.41,1.0]
[1734071242673,0.12549,226.5,226.41,1.0]
[1734071242674,8.25628913,226.46,226.41,1.0]
[1734071243870,0.12549,226.5,226.41,1.0]
[1734071243871,8.25628913,226.45,226.41,1.0]
[1734071244052,8.25628913,226.44,226.41,1.0]
[1734071244254,8.25628913,226.43,226.41,1.0]
[1734071244750,8.25628913,226.42,226.41,1.0]
[1734071246075,8.25628913,226.43,226.41,1.0]
[1734071247077,5.26850846,226.43,226.41,1.0]
[1734071250651,33.02515652,226.49,226.41,1.0]
[1734071250652,8.25628913,226.42,226.41,1.0]
[1734071251476,33.02515652,226.49,226.41,1.0]
[1734071251477,23.776884,226.48,226.41,1.0]
[1734071251656,8.25628913,226.42,226.41,1.0]
[1734071254664,32.03317313,226.42,226.41,1.0]
[1734071263577,8.25628913,226.42,226.41,1.0]
[1734071268377,8.25628913,226.43,226.41,1.0]
[1734071268780,8.25628913,226.42,226.41,1.0]
[1734071269584,32.03317313,226.42,226.41,1.0]
[1734071282617,32.15866313,226.42,226.41,1.0]
[1734071292823,23.902374,226.42,226.41,1.0]
[1734071293022,32.15866313,226.42,226.41,1.0]
[1734071294925,23.902374,226.42,226.41,1.0]
[1734071295119,32.15866313,226.42,226.41,1.0]
[1734071295424,32.03317313,226.42,226.41,1.0]
[1734071299636,32.15866313,226.42,226.41,1.0]
[1734071314942,23.902374,226.42,226.41,1.0]
[1734071315146,32.15866313,226.42,226.41,1.0]
[1734071319451,32.04213154,226.42,226.41,1.0]
[1734071336458,23.78584241,226.42,226.41,1.0]
[1734071336665,32.04213154,226.42,226.41,1.0]
[1734071343159,23.78584241,226.42,226.41,1.0]
[1734071343577,32.04213154,226.42,226.41,1.0]
[1734071353297,6.94142515,226.47,226.41,1.0]
[1734071353603,8.25628913,226.44,226.41,1.0]
[1734071353777,8.25628913,226.43,226.41,1.0]
[1734071354897,8.25628913,226.42,226.41,1.0]
[1734071366496,23.902374,226.48,226.41,1.0]
[1734071367217,8.25628913,226.45,226.41,1.0]
[1734071367400,6.94142515,226.49,226.41,1.0]
[1734071367401,8.25628913,226.44,226.41,1.0]
[1734071372889,8.25628913,226.45,226.41,1.0]
[1734071380422,5.12341612,226.54,226.42,8.25628913]
[1734071380723,8.25628913,226.5,226.43,15.98088913]
[1734071381648,8.25628913,226.51,226.45,8.25628913]
[1734071382239,8.25628913,226.52,226.45,8.25628913]
[1734071387374,8.25628913,226.52,226.46,8.25628913]
[1734071388048,23.902374,226.59,226.48,8.25628913]
[1734071388373,8.25628913,226.55,226.48,8.25628913]
[1734071390473,8.25628913,226.55,226.49,8.1095]
[1734071390675,8.25628913,226.56,226.49,16.36578913]
[1734071390840,8.25628913,226.56,226.5,8.25628913]
[1734071394755,23.776884,226.59,226.5,8.25628913]
[1734071395054,8.25628913,226.57,226.5,8.25628913]
[1734071396058,23.776884,226.59,226.5,8.25628913]
[1734071396378,8.25628913,226.57,226.5,8.25628913]
[1734071397189,8.25628913,226.55,226.49,16.36578913]
[1734071400386,8.25628913,226.53,226.43,12.7025]
[1734071400590,8.25628913,226.51,226.44,8.25628913]
[1734071400887,8.25628913,226.51,226.45,8.25628913]
[1734071402258,8.25628913,226.51,226.43,8.2795]
[1734071402259,8.25628913,226.52,226.46,8.25628913]
[1734071402530,0.12549,226.58,226.48,8.25628913]
[1734071402670,8.25628913,226.54,226.48,8.25628913]
[1734071402868,8.25628913,226.53,226.46,8.25628913]
[1734071408683,0.12549,226.58,226.47,8.25628913]
[1734071408684,8.25628913,226.54,226.47,8.25628913]
[1734071410015,8.25628913,226.53,226.46,8.25628913]
[1734071412076,23.776884,226.59,226.47,19.29518913]
[1734071412283,8.25628913,226.57,226.5,8.25628913]
[1734071412482,8.25628913,226.57,226.5,16.08498913]
[1734071416800,20.0,226.63,226.52,8.25628913]
[1734071416983,8.25628913,226.6,226.54,8.25628913]
[1734071417300,8.25628913,226.6,226.53,8.25628913]
[1734071417688,23.902374,226.65,226.53,8.25628913]
[1734071418206,8.25628913,226.6,226.53,8.25628913]
[1734071419397,8.25628913,226.61,226.54,8.25628913]
[1734071420673,8.25628913,226.61,226.55,8.25628913]
[1734071421301,8.25628913,226.64,226.57,8.25628913]
[1734071421685,8.25628913,226.64,226.57,16.03068913]
[1734071422183,8.25628913,226.62,226.57,7.7744]
[1734071423290,8.25628913,226.61,226.57,7.7744]
[1734071423491,8.25628913,226.59,226.51,7.7744]
[1734071423697,8.25628913,226.59,226.52,8.25628913]
[1734071426411,8.25628913,226.58,226.51,7.7744]
[1734071426601,8.25628913,226.57,226.51,7.7744]
[1734071428012,8.25628913,226.58,226.51,16.03068913]
[1734071430528,8.25628913,226.6,226.53,8.25628913]
[1734071431320,8.25628913,226.61,226.54,8.25628913]
[1734071432540,8.25628913,226.6,226.54,8.25628913]
[1734071433908,8.25628913,226.6,226.53,8.25628913]
[1734071434112,12.76719,226.66,226.53,8.25628913]
[1734071434406,8.25628913,226.61,226.55,8.25628913]
[1734071435214,0.12549,226.66,226.55,8.25628913]
[1734071435416,8.25628913,226.61,226.55,8.25628913]
[1734071435615,8.25628913,226.61,226.51,7.7744]
[1734071435616,23.902374,226.66,226.56,8.25628913]
[1734071435897,8.25628913,226.63,226.56,8.25628913]
[1734071436314,8.25628913,226.62,226.56,8.25628913]
[1734071436895,24.310729,226.67,226.58,8.25628913]
[1734071437215,8.25628913,226.65,226.58,8.25628913]
[1734071438215,8.25628913,226.62,226.55,8.25628913]
[1734071438796,8.25628913,226.61,226.54,8.25628913]
[1734071439107,8.25628913,226.59,226.53,8.25628913]
[1734071440332,0.12549,226.66,226.51,7.7744]
[1734071440333,20.0,226.64,226.55,8.25628913]
[1734071440628,8.25628913,226.61,226.55,8.25628913]
[1734071441322,20.0,226.64,226.51,8.43645704]
[1734071441323,8.25628913,226.62,226.56,8.25628913]
[1734071442625,8.25628913,226.61,226.54,8.25628913]
[1734071442795,8.25628913,226.6,226.54,8.25628913]
[1734071443520,23.776884,226.65,226.54,8.25628913]
[1734071443703,8.25628913,226.6,226.54,8.25628913]
[1734071443905,8.25628913,226.61,226.54,8.25628913]
[1734071445930,23.776884,226.65,226.55,8.25628913]
[1734071446118,8.25628913,226.61,226.54,8.25628913]
[1734071449401,8.25628913,226.61,226.51,7.7744]
[1734071449603,8.25628913,226.57,226.51,7.7744]
[1734071449831,8.25628913,226.56,226.51,7.7744]
[1734071450350,20.0,226.62,226.51,7.7744]